Workbook

Sheet меню завтрак 2017
G1: "УТВЕРЖДАЮ"
G2: Генеральный директор ООО "АльТрейд"
G3: _________________ Шулина Е.А.
G4: "_____" _____________ 2017 год
A9: Примерное двухнедельное меню для школ города Лениногорска и Лениногорского района на 2017 год
A11: № | B11: Наименование блюд | C11: Выход | D11: Цена | E11: Белки | F11: Жиры | G11: Угл-ды | H11: Ккал | I11: Витамины и минералы
A12: п/п | I12: С (мг) | J12: В2 (мг) | K12: Са (мг) | L12: Fe (мг)
B13: 1 день
A14: 1 | B14: Салат из свеклы | C14: 50 | D14: 1.66 | E14: 0.74 | F14: 3.7 | G14: 4.06 | H14: 51.16 | I14: 18.7 | J14: 0.018 | K14: 23.3 | L14: 0.3
A15: 2 | B15: Рыба тушеная | C15: 50 | D15: 14.41 | E15: 6.97 | F15: 3.28 | G15: 0.21 | H15: 58.29 | I15: 8 | J15: 0.075 | K15: 17.2 | L15: 0.86
A16: 3 | B16: Макароны отварные с маслом | C16: 150/5 | D16: 4.62 | E16: 9.04 | F16: 8.53 | G16: 60.58 | H16: 360.24 | I16: 0 | J16: 0.02 | K16: 9 | L16: 0.6
A17: 4 | B17: Хлеб дарницкий | C17: 40 | D17: 2.83 | E17: 2.64 | F17: 0.48 | G17: 13.68 | H17: 66 | I17: 0 | J17: 0.168 | K17: 17.6 | L17: 4.68
A18: 5 | B18: Компот из сухофруктов | C18: 200 | D18: 5.09 | E18: 5.5 | F18: 14 | G18: 73 | H18: 134 | I18: 50 | J18: 6 | K18: 0.1 | L18: 1.7
A19: 6 | B19: Пирожок с капустой | C19: 75 | D19: 10.00 | E19: 4 | F19: 4.55 | G19: 49.96 | H19: 213 | I19: 0 | J19: 0.17 | K19: 17.60 | L19: 4.68
B20: Итого: | D20: =SUM(D14:D19) -> 38.61 | E20: =SUM(E14:E19) -> 28.89 | F20: 34.54 | G20: 201.49 | H20: 882.69 | I20: 76.70 | J20: 6.45 | K20: 84.80 | L20: 12.82
B21: 2 день
A23: 1 | B23: Салат из моркови | C23: 50 | D23: 2.20 | E23: 0.29 | F23: 0.95 | G23: 2.57 | H23: 19.8 | I23: 8 | J23: 0.075 | K23: 17.2 | L23: 0.86
A24: 2 | B24: Каша перловая рассыпчатая | C24: 150 | D24: 5.52 | E24: 11.4 | F24: 8.78 | G24: 56.09 | H24: 334.99 | I24: 0 | J24: 0.093 | K24: 44.4 | L24: 0.8
A25: 3 | B25: Гуляш | C25: 50 | D25: 31.68 | E25: 6.79 | F25: 8.49 | G25: 5.6 | H25: 125.54 | I25: 0 | J25: 0.08 | K25: 12.1 | L25: 2.6
A26: 4 | B26: Хлеб дарницкий | C26: 40 | D26: 2.83 | E26: 2.64 | F26: 0.48 | G26: 13.68 | H26: 66 | I26: 0 | J26: 0.168 | K26: 17.6 | L26: 4.68
A27: 5 | B27: Чай с сахаром | C27: 200 | D27: 1.98 | E27: 4.84 | F27: 5.46 | G27: 52.72 | H27: 132 | I27: 50 | J27: 6 | K27: 0.1 | L27: 1.7
B28: Итого: | D28: =SUM(D23:D27) -> 44.21 | E28: =SUM(E23:E27) -> 25.96 | F28: 24.16 | G28: 130.66 | H28: 678.33 | I28: 58.00 | J28: 6.42 | K28: 91.40 | L28: 10.64
B29: 3 день
A30: 1 | B30: Салат из свежей капусты | C30: 40 | D30: 1.67 | E30: 0.8 | F30: 2.18 | G30: 4.38 | H30: 40.76 | I30: 18.7 | J30: 0.018 | K30: 23.3 | L30: 0.3
A31: 2 | B31: Сосиска отварная | C31: 50 | D31: 22.40 | E31: 5.27 | F31: 14.67 | G31: 0.45 | H31: 154.45 | I31: 0 | J31: 0.06 | K31: 24.42 | L31: 0.99
A32: 3 | B32: Картофельное пюре с маслом | C32: 150/5 | D32: 10.72 | E32: 11.4 | F32: 8.78 | G32: 56.09 | H32: 334.99 | I32: 0 | J32: 0.093 | K32: 44.4 | L32: 0.8
A33: 4 | B33: Хлеб дарницкий | C33: 40 | D33: 2.83 | E33: 2.64 | F33: 0.48 | G33: 13.68 | H33: 66 | I33: 0 | J33: 0.168 | K33: 17.6 | L33: 4.68
A34: 5 | B34: Чай с сахаром | C34: 200 | D34: 1.98 | E34: 4.84 | F34: 5.46 | G34: 52.72 | H34: 132 | I34: 50 | J34: 6 | K34: 0.1 | L34: 1.7
B35: Итого: | D35: =SUM(D30:D34) -> 39.60 | E35: =SUM(E30:E34) -> 24.95 | F35: 31.57 | G35: 127.32 | H35: 728.20 | I35: 68.70 | J35: 6.34 | K35: 109.82 | L35: 8.47
B36: 4 день
A37: 1 | B37: Каша молочная ячневая с маслом | C37: 150/10 | D37: 10.85 | E37: 13.38 | F37: 17.27 | G37: 38.42 | H37: 258.98 | I37: 0 | J37: 0.1 | K37: 23.3 | L37: 1.2
A38: 2 | B38: Хлеб дарницкий | C38: 40 | D38: 2.83 | E38: 2.64 | F38: 0.48 | G38: 13.68 | H38: 66 | I38: 0 | J38: 0.168 | K38: 17.6 | L38: 4.68
A39: 3 | B39: Чай с сахаром | C39: 200 | D39: 1.98 | E39: 4.84 | F39: 5.46 | G39: 52.72 | H39: 132 | I39: 50 | J39: 6 | K39: 0.1 | L39: 1.7
A40: 4 | B40: Булочка домашняя | C40: 50 | D40: 7.90 | E40: 3.18 | F40: 3.9 | G40: 3.6 | H40: 27.1 | I40: 0 | J40: 0.168 | K40: 17.6 | L40: 4.68
A41: 5 | B41: Фруктовый десерт | C41: 54 | D41: 8.38 | E41: 0.44 | F41: 0.44 | G41: 10.78 | H41: 51.7 | I41: 28 | J41: 0.093 | K41: 44.4 | L41: 0.8
B42: Итого: | D42: =SUM(D37:D41) -> 31.94 | E42: =SUM(E37:E41) -> 24.48 | F42: 27.55 | G42: 119.20 | H42: 535.78 | I42: 78.00 | J42: 6.53 | K42: 103.00 | L42: 13.06
B43: 5 день
A44: 1 | B44: Салат из свеклы | C44: 50 | D44: 1.66 | E44: 0.74 | F44: 3.7 | G44: 4.06 | H44: 51.16 | I44: 18.9 | J44: 0.023 | K44: 17.4 | L44: 1.53
A45: 2 | B45: Плов из птицы | C45: 200 | D45: 37.15 | E45: 13.38 | F45: 17.27 | G45: 38.42 | H45: 358.98 | J45: 0.1 | K45: 23.3 | L45: 1.2
A46: 3 | B46: Хлеб дарницкий | C46: 40 | D46: 2.83 | E46: 2.64 | F46: 0.48 | G46: 13.68 | H46: 66 | I46: 0 | J46: 0.168 | K46: 17.6 | L46: 4.68
A47: 4 | B47: Чай с сахаром | C47: 200 | D47: 1.98 | E47: 4.84 | F47: 5.46 | G47: 52.72 | H47: 132 | I47: 50 | J47: 6 | K47: 0.1 | L47: 1.7
A48: 5 | B48: Печенье | C48: 30 | D48: 3.83 | E48: 2.25 | F48: 3.54 | G48: 22.47 | H48: 125.1 | I48: 2 | K48: 0.03 | L48: 12
B49: Итого: | D49: =SUM(D44:D48) -> 47.45 | E49: =SUM(E44:E48) -> 23.85 | F49: 30.45 | G49: 131.35 | H49: 733.24 | I49: 70.90 | J49: 6.29 | K49: 58.43 | L49: 21.11
B50: 6 день
A51: 1 | B51: Творожная запеканка с маслом | C51: 100/5 | D51: 24.84 | E51: 9.26 | F51: 6.46 | G51: 40.19 | H51: 256.91 | I51: 2.76 | J51: 0.19 | K51: 124.5 | L51: 0.56
A52: 2 | B52: Хлеб дарницкий | C52: 40 | D52: 2.83 | E52: 2.64 | F52: 0.48 | G52: 13.68 | H52: 66 | I52: 0 | J52: 0.168 | K52: 17.6 | L52: 4.68
A53: 3 | B53: Чай с сахаром | C53: 200 | D53: 1.98 | E53: 4.84 | F53: 5.46 | G53: 52.72 | H53: 132 | I53: 50 | J53: 6 | K53: 0.1 | L53: 1.7
A54: 4 | B54: Плюшка | C54: 50 | D54: 7.90 | E54: 4.8 | F54: 14.5 | G54: 45 | H54: 127.1 | I54: 0 | J54: 0.17 | K54: 17.60 | L54: 4.68
B55: Итого: | D55: =SUM(D51:D54) -> 37.55 | E55: =SUM(E51:E54) -> 21.54 | F55: 26.90 | G55: 151.59 | H55: 582.01 | I55: 52.76 | J55: 6.53 | K55: 159.80 | L55: 11.62
B56: 7 день
A57: 1 | B57: Салат из свежей капусты | C57: 40 | D57: 1.67 | E57: 0.8 | F57: 2.18 | G57: 4.38 | H57: 40.76 | I57: 18.7 | J57: 0.018 | K57: 23.3 | L57: 0.3
A58: 2 | B58: Колбаса отварная | C58: 50 | D58: 22.40 | E58: 5.27 | F58: 14.67 | G58: 0.45 | H58: 154.45 | I58: 0 | J58: 0.06 | K58: 24.42 | L58: 0.99
A59: 3 | B59: Каша рассыпчатая пшенная с маслом | C59: 150/5 | D59: 7.84 | E59: 13.38 | F59: 17.27 | G59: 38.42 | H59: 358.98 | I59: 0 | J59: 0.1 | K59: 23.3 | L59: 1.2
A60: 4 | B60: Хлеб дарницкий | C60: 40 | D60: 2.83 | E60: 2.64 | F60: 0.48 | G60: 13.68 | H60: 66 | I60: 0 | J60: 0.168 | K60: 17.6 | L60: 4.68
A61: 5 | B61: Кисель фруктовый | C61: 200 | D61: 3.62 | E61: 0 | F61: 0 | G61: 93.75 | H61: 132 | I61: 50 | J61: 6 | K61: 0.1 | L61: 1.7
B62: Итого: | D62: =SUM(D57:D61) -> 38.36 | E62: 22.09 | F62: 34.60 | G62: 150.68 | H62: 752.19 | I62: 68.70 | J62: 6.35 | K62: 88.72 | L62: 8.87
B63: 8 день
A64: 1 | B64: Салат из моркови | C64: 50 | D64: 2.20 | E64: 0.29 | F64: 0.95 | G64: 2.57 | H64: 19.8 | I64: 8 | J64: 0.075 | K64: 17.2 | L64: 0.86
A65: 2 | B65: Котлета из говядины | C65: 50 | D65: 25.46 | E65: 7.78 | F65: 5.78 | G65: 7.85 | H65: 114.38 | I65: 0.08 | J65: 0.05 | K65: 21.88 | L65: 0.75
A66: 3 | B66: Каша рассыпчатая ячневая с маслом | C66: 150/5 | D66: 7.95 | E66: 13.38 | F66: 17.27 | G66: 38.42 | H66: 358.98 | I66: 0 | J66: 0.1 | K66: 23.3 | L66: 1.2
A67: 4 | B67: Хлеб дарницкий | C67: 40 | D67: 2.83 | E67: 2.64 | F67: 0.48 | G67: 13.68 | H67: 66 | I67: 0 | J67: 0.168 | K67: 17.6 | L67: 4.68
A68: 5 | B68: Чай с сахаром | C68: 200 | D68: 1.98 | E68: 4.84 | F68: 5.46 | G68: 52.72 | H68: 132 | I68: 50 | J68: 6 | K68: 0.1 | L68: 1.7
B69: Итого: | D69: =SUM(D64:D68) -> 40.42 | E69: =SUM(E64:E68) -> 28.93 | F69: 29.94 | G69: 115.24 | H69: 691.16 | I69: 58.08 | J69: 6.39 | K69: 80.08 | L69: 9.19
B70: 9 день
A71: 1 | B71: Омлет натуральный с маслом | C71: 120/5 | D71: 25.93 | E71: 13.11 | F71: 11.74 | G71: 0.79 | H71: 266.73 | I71: 0.6 | J71: 0.14 | K71: 124.9 | L71: 0.7
A72: 2 | B72: Хлеб дарницкий | C72: 40 | D72: 2.83 | E72: 2.64 | F72: 0.48 | G72: 13.68 | H72: 66 | I72: 0 | J72: 0.168 | K72: 17.6 | L72: 4.68
A73: 3 | B73: Коржик | C73: 50 | D73: 7.90 | E73: 3.18 | F73: 3.9 | G73: 3.6 | H73: 274 | I73: 0 | J73: 0.168 | K73: 17.6 | L73: 4.68
A74: 4 | B74: Какао с молоком | C74: 200 | D74: 8.95 | E74: 5.5 | F74: 14 | G74: 73 | H74: 134 | I74: 50 | J74: 6 | K74: 0.1 | L74: 1.7
B75: Итого: | D75: =SUM(D71:D74) -> 45.61 | E75: =SUM(E71:E74) -> 24.43 | F75: 30.12 | G75: 91.07 | H75: 740.73 | I75: 50.60 | J75: 6.48 | K75: 160.20 | L75: 11.76
B76: 10 день
A77: 1 | B77: Салат из свеклы | C77: 50 | D77: 1.66 | E77: 0.74 | F77: 3.7 | G77: 4.06 | H77: 51.16 | I77: 18.7 | J77: 0.018 | K77: 23.3 | L77: 0.3
A78: 2 | B78: Капуста тушеная | C78: 150 | D78: 8.66 | E78: 18.52 | F78: 7.41 | G78: 48.02 | H78: 319.28 | I78: 12.3 | J78: 0.1 | K78: 63 | L78: 4.6
A79: 3 | B79: Куры тушеные в соусе | C79: 50/50 | D79: 15.99 | E79: 7.55 | F79: 8.47 | G79: 0 | H79: 106.21 | I79: 0 | J79: 0.1 | K79: 23.3 | L79: 1.2
A80: 4 | B80: Хлеб дарницкий | C80: 40 | D80: 2.83 | E80: 2.64 | F80: 0.48 | G80: 13.68 | H80: 66 | I80: 0 | J80: 0.168 | K80: 17.6 | L80: 4.68
A81: 5 | B81: Чай с сахаром | C81: 200 | D81: 1.98 | E81: 4.84 | F81: 5.46 | G81: 52.72 | H81: 132 | I81: 50 | J81: 6 | K81: 0.1 | L81: 1.7
B82: Итого: | D82: =SUM(D77:D81) -> 31.12 | E82: =SUM(E77:E81) -> 34.29 | F82: 25.52 | G82: 118.48 | H82: 674.65 | I82: 81.00 | J82: 6.39 | K82: 127.30 | L82: 12.48
B83: 11 день
A84: 1 | B84: Каша молочная геркулесовая с маслом | C84: 150/10 | D84: 11.37 | E84: 13.38 | F84: 17.27 | G84: 38.42 | H84: 258.98 | I84: 0 | J84: 0.1 | K84: 23.3 | L84: 1.2
A85: 2 | B85: Сыр | C85: 20 | D85: 10.18 | E85: 4.83 | F85: 5.91 | G85: 0.07 | H85: 72.6 | I85: 2 | J85: 14.1 | K85: 3.58 | L85: 2.4
A86: 3 | B86: Хлеб дарницкий | C86: 40 | D86: 2.83 | E86: 2.64 | F86: 0.48 | G86: 13.68 | H86: 66 | I86: 0 | J86: 0.168 | K86: 17.6 | L86: 4.68
A87: 4 | B87: Чай с сахаром | C87: 200 | D87: 1.98 | E87: 0 | F87: 0 | G87: 93.75 | H87: 132 | I87: 0 | J87: 0.01 | K87: 1.7 | L87: 10.05
A88: 5 | B88: Пирожок с картофелем | C88: 75 | D88: 10.00 | E88: 4 | F88: 4.55 | G88: 49.96 | H88: 213 | I88: 0 | J88: 0.17 | K88: 17.60 | L88: 4.68
B89: Итого: | D89: =SUM(D84:D88) -> 36.36 | E89: 24.85 | F89: 28.21 | G89: 195.88 | H89: 742.58 | I89: 2.00 | J89: 14.55 | K89: 63.78 | L89: 23.01
B90: 12 день
A91: 1 | B91: Салат из свежей капусты | C91: 40 | D91: 1.67 | E91: 0.8 | F91: 2.18 | G91: 4.38 | H91: 40.76 | I91: 18.7 | J91: 0.018 | K91: 23.3 | L91: 0.3
A92: 2 | B92: Биточки рыбные | C92: 50.5 | D92: 11.75 | E92: 6.97 | F92: 3.28 | G92: 0.21 | H92: 58.29 | I92: 8 | J92: 0.075 | K92: 17.2 | L92: 0.86
A93: 3 | B93: Макароны отварные с маслом | C93: 150/5 | D93: 4.62 | E93: 9.04 | F93: 8.53 | G93: 60.58 | H93: 360.24 | I93: 0 | J93: 0.02 | K93: 9 | L93: 0.6
A94: 4 | B94: Хлеб дарницкий | C94: 40 | D94: 2.83 | E94: 2.64 | F94: 0.48 | G94: 13.68 | H94: 66 | I94: 0 | J94: 0.168 | K94: 17.6 | L94: 4.68
A95: 5 | B95: Сок | C95: 200 | D95: 20.32 | E95: 4.84 | F95: 5.46 | G95: 52.72 | H95: 132 | I95: 50 | J95: 6 | K95: 0.1 | L95: 1.7
A96: 6 | B96: Фруктовый десерт | C96: 57 | D96: 8.83 | E96: 0.44 | F96: 0.44 | G96: 10.78 | H96: 51.7 | I96: 28 | J96: 0.093 | K96: 44.4 | L96: 0.8
B97: Итого: | D97: =SUM(D91:D96) -> 50.02 | E97: =SUM(E91:E96) -> 24.73 | F97: 20.37 | G97: 142.35 | H97: 708.99 | I97: 104.70 | J97: 6.37 | K97: 111.60 | L97: 8.94
B98: Всего: | D98: =D20+D28+D35+D42+D49+D55+D62+D69+D75+D82+D89+D97 -> 481.25 | E98: 308.99 | F98: 343.93 | G98: 1675.31 | H98: 8450.55 | I98: 770.14 | J98: 85.07 | K98: 1238.93 | L98: 151.97
B100: Средняя стоимость по меню: | D100: =D98/12 -> 40.10
B101: Согласно нашему анализу торговая наценка по меню составляет в городе 60%, в районе 49%, средняя 52%.
B102: Исходя из этого мы сделали скидку примерно 5% на цены государственного комитета Республики Татарстан по закупкам на 2017 год.

Sheet меню обед 2017
G1: "УТВЕРЖДАЮ"
G2: Генеральный директор ООО "АльТрейд"
G3: _____________________ Шулина Е.А.
G4: "______" _________________ 2017 год
B7: Примерное десятидневное меню для продленного дня начальных классов города Лениногорск и Лениногорского района на 2017 учебный год
A9: № | B9: Наименование блюд | C9: Выход | D9: Цена | E9: Белки | F9: Жиры | G9: Угл-ды | H9: Ккал | I9: Витамины и минералы
A10: п/п | I10: С (мг) | J10: В2 (мг) | K10: Са (мг) | L10: Fe (мг)
A11: 1 день
A12: 1 | B12: Суп картофельный с рисовой крупой | C12: 250 | D12: 5.82 | E12: 4.93 | F12: 8 | G12: 32.6 | H12: 216.85 | I12: 9.1 | J12: 0.1 | K12: 39.9 | L12: 1
A13: 2 | B13: Хлеб пшеничный | C13: 40 | D13: 3.50 | E13: 2.64 | F13: 0.48 | G13: 13.68 | H13: 66 | I13: 0 | J13: 0.168 | K13: 17.6 | L13: 4.68
A14: 3 | B14: Чай с сахаром | C14: 200 | D14: 1.98 | E14: 0 | F14: 0 | G14: 93.75 | H14: 132 | I14: 50 | J14: 6 | K14: 0.1 | L14: 1.7
B15: Итого: | D15: =D12+D13+D14 -> 11.30 | E15: =SUM(E12:E14) -> 7.57 | F15: 8.48 | G15: 140.03 | H15: 414.85 | I15: 59.1 | J15: 6.268 | K15: 57.6 | L15: 7.38
A16: 2 день
A17: 1 | B17: Суп крестьянский | C17: 250 | D17: 5.64 | E17: 5.95 | F17: 9.13 | G17: 33.55 | H17: 232.73 | I17: 17.6 | J17: 0.05 | K17: 51.2 | L17: 0.8
A18: 2 | B18: Хлеб пшеничный | C18: 40 | D18: 3.50 | E18: 2.64 | F18: 0.48 | G18: 13.68 | H18: 66 | I18: 0 | J18: 0.168 | K18: 17.6 | L18: 4.68
A19: 3 | B19: Чай с сахаром | C19: 200 | D19: 1.98 | E19: 0 | F19: 0 | G19: 93.75 | H19: 132 | I19: 6 | J19: 0.01 | K19: 1.7 | L19: 0.05
A20: 4 | B20: Фруктовый десерт | C20: 150 | D20: 23.26 | E20: 0.44 | F20: 0.44 | G20: 10.78 | H20: 51.7 | I20: 28 | J20: 0.093 | K20: 44.4 | L20: 0.8
B21: Итого: | D21: =D17+D18+D19+D20 -> 34.38 | E21: =SUM(E17:E20) -> 9.03 | F21: =SUM(F17:F20) -> 10.05 | G21: =SUM(G17:G20) -> 151.76 | H21: =SUM(H17:H20) -> 482.43 | I21: =SUM(I17:I20) -> 51.60 | J21: =SUM(J17:J20) -> 0.32 | K21: =SUM(K17:K20) -> 114.90 | L21: =SUM(L17:L20) -> 6.33
A22: 3 день
A23: 1 | B23: Суп молочный с макаронными изделиями | C23: 250 | D23: 9.50 | E23: 10.2 | F23: 10.7 | G23: 35.78 | H23: 281.6 | I23: 9.1 | J23: 0.1 | K23: 39.9 | L23: 1
A24: 2 | B24: Хлеб пшеничный | C24: 40 | D24: 3.50 | E24: 2.64 | F24: 0.48 | G24: 13.68 | H24: 66 | J24: 0.168 | K24: 17.6 | L24: 4.68
A25: 3 | B25: Компот из сухофрутов | C25: 200 | D25: 5.09 | E25: 5.5 | F25: 14 | G25: 73 | H25: 134 | I25: 50 | J25: 6 | K25: 0.1 | L25: 1.7
A26: 4 | B26: Коржик | C26: 50 | D26: 7.90 | E26: 3.18 | F26: 3.9 | G26: 3.6 | H26: 274 | I26: 0 | J26: 0.168 | K26: 17.6 | L26: 4.68
B27: Итого: | D27: =D23+D24+D25+D26 -> 25.99 | E27: =E23+E24+E25+E26 -> 21.52 | F27: 29.08 | G27: 126.06 | H27: 755.60 | I27: 59.10 | J27: 6.44 | K27: 75.20 | L27: 12.06
A28: 4 день
A29: 1 | B29: Суп с картофельный с макаронными изд. | C29: 250 | D29: 5.75 | E29: 5.85 | F29: 7.43 | G29: 47.38 | H29: 272.75 | I29: 4.9 | J29: 0.1 | K29: 58.9 | L29: 1.85
A30: 2 | B30: Хлеб пшеничный | C30: 40 | D30: 3.50 | E30: 2.64 | F30: 0.48 | G30: 13.68 | H30: 66 | J30: 0.168 | K30: 17.6 | L30: 4.68
A31: 3 | B31: Кисель фруктовый | C31: 200 | D31: 3.62 | E31: 0 | F31: 0 | G31: 40.88 | H31: 143.53 | I31: 6 | J31: 0.01 | K31: 1.7 | L31: 0.05
B32: Итого: | D32: =D29+D30+D31 -> 12.87 | E32: =SUM(E29:E31) -> 8.49 | F32: 7.91 | G32: 101.94 | H32: 482.28 | I32: 10.90 | J32: 0.28 | K32: 78.20 | L32: 6.58
A33: 5 день
A34: 1 | B34: Борщ | C34: 250 | D34: 6.55 | E34: 4.28 | F34: 7.53 | G34: 28.18 | H34: 290.93 | I34: 17.6 | J34: 0.05 | K34: 51.2 | L34: 0.8
A35: 2 | B35: Хлеб пшеничный | C35: 40 | D35: 3.50 | E35: 2.64 | F35: 0.48 | G35: 13.68 | H35: 66 | J35: 0.168 | K35: 17.6 | L35: 4.68
A36: 3 | B36: Чай с сахаром | C36: 200 | D36: 1.98 | E36: 0 | F36: 0 | G36: 93.75 | H36: 132 | I36: 6 | J36: 0.01 | K36: 1.7 | L36: 10.05
A37: 4 | B37: Вафли | C37: 30 | D37: 5.79
B38: Итого: | D38: =D34+D35+D36+D37 -> 17.82 | E38: =SUM(E34:E36) -> 6.92 | F38: =SUM(F34:F36) -> 8.01 | G38: =SUM(G34:G36) -> 135.61 | H38: =SUM(H34:H36) -> 488.93 | I38: =SUM(I34:I36) -> 23.6 | J38: =SUM(J34:J36) -> 0.228 | K38: =SUM(K34:K36) -> 70.5 | L38: =SUM(L34:L36) -> 15.53
A39: 6 день
A40: 1 | B40: Суп картофельный с пшенной крупой | C40: 250 | D40: 5.53 | E40: 5.05 | F40: 7.68 | G40: 43.38 | H40: 253.6 | I40: 9.2 | J40: 0.1 | K40: 33.7 | L40: 1.2
A41: 2 | B41: Хлеб пшеничный | C41: 40 | D41: 3.50 | E41: 2.64 | F41: 0.48 | G41: 13.68 | H41: 66 | J41: 0.168 | K41: 17.6 | L41: 4.68
A42: 3 | B42: Какао с молоком | C42: 200 | D42: 8.95 | E42: 5.5 | F42: 14 | G42: 73 | H42: 134 | I42: 50 | J42: 6 | K42: 0.1 | L42: 1.7
B43: Итого: | D43: =D40+D41+D42 -> 17.98 | E43: =SUM(E40:E42) -> 13.19 | F43: 22.16 | G43: 130.06 | H43: 453.6 | I43: 59.2 | J43: 6.268 | K43: 51.4 | L43: 7.58
A44: 7 день
A45: 1 | B45: Суп картофельный с горохом | C45: 250 | D45: 4.96 | E45: 11.73 | F45: 9.23 | G45: 51.5 | H45: 274.18 | I45: 0.6 | J45: 0.14 | K45: 124.9 | L45: 0.7
A46: 2 | B46: Хлеб пшеничный | C46: 40 | D46: 3.50 | E46: 2.64 | F46: 0.48 | G46: 13.68 | H46: 66 | J46: 0.168 | K46: 17.6 | L46: 4.68
A47: 3 | B47: Кисель фруктовый | C47: 200 | D47: 3.62 | E47: 0 | F47: 0 | G47: 40.88 | H47: 143.53 | I47: 6 | J47: 0.01 | K47: 1.7 | L47: 0.05
A48: 4 | B48: Фруктовый десерт | C48: 150 | D48: 23.26 | E48: 0.44 | F48: 0.44 | G48: 10.78 | H48: 51.7 | I48: 28 | J48: 0.093 | K48: 44.4 | L48: 0.8
B49: Итого: | D49: =D45+D46+D47+D48 -> 35.34 | E49: =E45+E46+E47+E48 -> 14.81 | F49: 10.15 | G49: 116.84 | H49: 535.41 | I49: 34.60 | J49: 0.41 | K49: 188.60 | L49: 6.23
A50: 8 день
A51: 1 | B51: Суп картофельный с вермишелью | C51: 250 | D51: 5.76 | E51: 4.9 | F51: 6.4 | G51: 37.73 | H51: 218.95 | I51: 5.9 | J51: 0.08 | K51: 34.7 | L51: 1
A52: 2 | B52: Хлеб пшеничный | C52: 48 | D52: 4.20 | E52: 2.64 | F52: 0.48 | G52: 13.68 | H52: 66 | J52: 0.168 | K52: 17.6 | L52: 4.68
A53: 3 | B53: Чай с сахаром | C53: 200 | D53: 1.98 | E53: 0 | F53: 0 | G53: 93.75 | H53: 132 | I53: 50 | J53: 6 | K53: 0.1 | L53: 1.7
A54: 4 | B54: Булочка домашняя | C54: 50 | D54: 7.90 | E54: 3.18 | F54: 3.9 | G54: 3.6 | H54: 27.1 | I54: 0 | J54: 0.168 | K54: 17.6 | L54: 4.68
B55: Итого: | D55: =D51+D52+D53+D54 -> 19.84 | E55: =E51+E52+E53+E54 -> 10.72 | F55: 10.78 | G55: 148.76 | H55: 444.05 | I55: 55.90 | J55: 6.42 | K55: 70.00 | L55: 12.06
A56: 9 день
A57: 1 | B57: Суп картофельный с пшеничной крупой | C57: 250 | D57: 5.50 | E57: 5.38 | F57: 7.83 | G57: 42.58 | H57: 252.28 | I57: 9.1 | J57: 0.1 | K57: 39.9 | L57: 1
A58: 2 | B58: Хлеб пшеничный | C58: 44 | D58: 3.85 | E58: 2.64 | F58: 0.48 | G58: 13.68 | H58: 66 | J58: 0.168 | K58: 17.6 | L58: 4.68
A59: 3 | B59: Чай с сахаром | C59: 200 | D59: 1.98 | E59: 0 | F59: 0 | G59: 93.75 | H59: 132 | I59: 6 | J59: 0.01 | K59: 1.7 | L59: 0.05
A60: 4 | B60: Фруктовый десерт | C60: 159 | D60: 24.65 | E60: 0.9 | F60: 0.2 | G60: 8.1 | H60: 36
B61: Итого: | D61: =D57+D58+D59+D60 -> 35.98 | E61: =SUM(E57:E60) -> 8.92 | F61: =SUM(F57:F60) -> 8.51 | G61: =SUM(G57:G60) -> 158.11 | H61: =SUM(H57:H60) -> 486.28 | I61: =SUM(I57:I60) -> 15.1 | J61: =SUM(J57:J60) -> 0.278 | K61: =SUM(K57:K60) -> 59.2 | L61: =SUM(L57:L60) -> 5.73
A62: 10 день
A63: 1 | B63: Щи | C63: 250 | D63: 6.37 | E63: 4.68 | F63: 8.4 | G63: 25.4 | H63: 289.65 | I63: 9.2 | J63: 0.1 | K63: 3.7 | L63: 1.2
A64: 2 | B64: Хлеб пшеничный | C64: 40 | D64: 3.50 | E64: 2.64 | F64: 0.48 | G64: 13.68 | H64: 66 | J64: 0.168 | K64: 17.6 | L64: 4.68
A65: 3 | B65: Кисель фруктовый | C65: 200 | D65: 3.62 | E65: 0 | F65: 0 | G65: 40.88 | H65: 143.53 | I65: 6 | J65: 0.01 | K65: 1.7 | L65: 0.05
B66: Итого: | D66: =D63+D64+D65 -> 13.49 | E66: =SUM(E63:E65) -> 7.32 | F66: 8.88 | G66: 79.96 | H66: 499.18 | I66: 15.2 | J66: 0.278 | K66: 23 | L66: 5.93
B67: Всего: | D67: =D15+D21+D27+D32+D38+D43+D49+D55+D61+D66 -> 224.99 | E67: =E15+E21+E27+E32+E38+E43+E49+E55+E61+E66 -> 108.49 | F67: =F15+F21+F27+F32+F38+F43+F49+F55+F61+F66 -> 124.01 | G67: =G15+G21+G27+G32+G38+G43+G49+G55+G61+G66 -> 1289.13 | H67: =H15+H21+H27+H32+H38+H43+H49+H55+H61+H66 -> 5042.61 | I67: =I15+I21+I27+I32+I38+I43+I49+I55+I61+I66 -> 384.30 | J67: =J15+J21+J27+J32+J38+J43+J49+J55+J61+J66 -> 27.18 | K67: =K15+K21+K27+K32+K38+K43+K49+K55+K61+K66 -> 788.60 | L67: =L15+L21+L27+L32+L38+L43+L49+L55+L61+L66 -> 85.41
B69: Средняя стоимость по меню: | D69: =D67/10 -> 22.50
B70: Согласно нашему анализу торговая наценка по меню составляет в городе 60%, в районе 49%, средняя 52%.
B71: Исходя из этого мы сделали скидку примерно 5% на цены государственного комитета Республики Татарстан по закупкам на 2017 год.
